[Event "53rd Women Tournament 2022"]
[Site "Belgrade"]
[Date "2022.03.30"]
[Round "3.2"]
[White "Lu, Miaoyi"]
[Black "Toncheva, Nadya"]
[Result "1-0"]
[ECO "B48"]
[WhiteElo "2182"]
[BlackElo "2207"]
[Annotator "NA"]
[PlyCount "69"]
[EventDate "2022.03.28"]
[EventType "tourn"]
[EventCountry "SRB"]
[SourceTitle "playchess.com"]
[Source "ChessBase"]
[SourceQuality "1"]
[TimeControl "40/5400+30:1800+30"]

1. e4 {[%emt 1:31:00]} c5 {[%emt 0:00:06]} 2. Nc3 {[%emt 0:00:00]} Nc6 {[%emt 0:00:07]} 3. Nf3 {[%emt 0:00:00]} e6 {[%emt 0:00:08]} 4. d4 {[%emt 0:00:00]} cxd4 {[%emt 0:00:05]} 5. Nxd4 {[%emt 0:00:00]} Qc7 {[%emt 0:00:04]} 6. Be3 {[%emt 0:00:00]} a6 {[%emt 0:00:03]} 7. Qd2 {[%emt 0:00:00]} Nf6 {[%emt 0:00:05]} 8. f4 {[%emt 0:00:00]} Bb4 {[%emt 0:00:32]} 9. Bd3 {[%emt 0:00:00]} Na5 {[%emt 0:00:18]} 10. a3 {[%emt 0:00:00]} Bxc3 {[%emt 0:00:19]} 11. Qxc3 {[%emt 0:00:00]} Qxc3+ {[%emt 0:00:07]} 12. bxc3 {[%emt 0:00:00]} d5 {[%emt 0:00:10]} 13. exd5 {[%emt 0:00:00]} exd5 {[%emt 0:00:04]} 14. Nb3 {[%emt 0:00:00]} Nc4 {[%emt 0:01:55]} 15. Bd4 {[%emt 0:00:00]} O-O {[%emt 0:06:38]} 16. O-O {[%emt 0:00:00]} Ne4 {[%emt 0:03:36]} 17. Rfe1 {[%emt 0:00:00]} Ncd6 {[%emt 0:15:09]} 18. Nc5 {[%emt 0:00:00]} Bf5 {[%emt 0:02:47]} 19. Na4 {[%emt 0:00:00]} Rad8 {[%emt 0:31:34]} 20. Nb6 {[%emt 0:00:00]} Nc8 {[%emt 0:02:21]} 21. Nxd5 {[%emt 0:00:00]} Rxd5 {[%emt 0:00:04]} 22. Bxe4 {[%emt 0:00:00]} Bxe4 {[%emt 0:00:02]} 23. Rxe4 {[%emt 0:00:00]} Rfd8 {[%emt 0:00:02]} 24. Rae1 {[%emt 0:00:00]} f5 {[%emt 0:05:18]} 25. R4e3 {[%emt 0:00:00]} Kf7 {[%emt 0:01:17]} 26. Rg3 {[%emt 0:00:00]} g6 {[%emt 0:00:26]} 27. Rh3 {[%emt 0:00:00]} h5 {[%emt 0:00:18]} 28. Rhe3 {[%emt 0:00:00]} Ra5 {[%emt 0:07:06]} 29. Re6 {[%emt 0:00:00]} Rd6 {[%emt 0:05:57]} 30. Re8 {[%emt 0:00:00]} Rc6 {[%emt 0:00:10]} 31. Rh8 {[%emt 0:00:00]} Rxa3 {[%emt 0:03:41]} 32. Ree8 {[%emt 0:00:00]} Ra1+ {[%emt 0:01:39]} 33. Kf2 {[%emt 0:00:00]} Ne7 {[%emt 0:00:04]} 34. Rhf8+ {[%emt 0:00:00]} Ke6 {[%emt 0:00:05]} 35. Rd8 {[%emt 0:01:24]} 1-0

[Event "53rd Women Tournament 2022"]
[Site "Belgrade"]
[Date "2022.03.31"]
[Round "4.1"]
[White "Chelushkina, Irina"]
[Black "Srdanovic, Jovana"]
[Result "1-0"]
[ECO "D00"]
[WhiteElo "2183"]
[BlackElo "2194"]
[Annotator "NA"]
[PlyCount "73"]
[EventDate "2022.03.28"]
[EventType "tourn"]
[EventCountry "SRB"]
[SourceTitle "playchess.com"]
[Source "ChessBase"]
[SourceQuality "1"]
[TimeControl "40/5400+30:1800+30"]

1. d4 {[%emt 0:00:02]} d5 {[%emt 0:00:07]} 2. e3 {[%emt 0:00:03]} Nf6 {[%emt 0:02:07]} 3. Bd3 {[%emt 0:00:18]} c5 {[%emt 0:01:06]} 4. c3 {[%emt 0:00:08]} Nc6 {[%emt 0:01:22]} 5. f4 {[%emt 0:00:16]} g6 {[%emt 0:01:23]} 6. Nf3 {[%emt 0:00:06]} Bg7 {[%emt 0:05:30]} 7. O-O {[%emt 0:00:09]} Bf5 {[%emt 0:05:57]} 8. Be2 {[%emt 0:00:21]} Ne4 {[%emt 0:09:22]} 9. Nbd2 {[%emt 0:00:44]} cxd4 {[%emt 0:00:39]} 10. exd4 {[%emt 0:02:45]} Nxd2 {[%emt 0:07:54]} 11. Bxd2 {[%emt 0:00:19]} a6 {[%emt 0:12:41]} 12. Kh1 {[%emt 0:00:28]} Qd7 {[%emt 0:01:06]} 13. b4 {[%emt 0:01:57]} Na7 {[%emt 0:09:21]} 14. a4 {[%emt 0:04:12]} Nc8 {[%emt 0:02:28]} 15. Qb3 {[%emt 0:00:58]} O-O {[%emt 0:01:20]} 16. Ne5 {[%emt 0:05:50]} Qd8 {[%emt 0:09:30]} 17. Bf3 {[%emt 0:01:59]} Be6 {[%emt 0:00:25]} 18. a5 {[%emt 0:02:11]} b6 {[%emt 0:07:12]} 19. Qa2 {[%emt 0:05:26]} f6 {[%emt 0:01:58]} 20. Nd3 {[%emt 0:07:37]} Bf7 {[%emt 0:02:21]} 21. Rfe1 {[%emt 0:04:25]} bxa5 {[%emt 0:07:47]} 22. bxa5 {[%emt 0:01:37]} e6 {[%emt 0:00:13]} 23. Nc5 {[%emt 0:04:43]} Re8 {[%emt 0:07:06]} 24. c4 {[%emt 0:04:23]} e5 {[%emt 0:02:11]} 25. cxd5 {[%emt 0:05:03]} exd4 {[%emt 0:00:53]} 26. Ne6 {[%emt 0:01:22]} Qd6 {[%emt 0:00:33]} 27. Rac1 {[%emt 0:05:23]} Na7 {[%emt 0:00:31]} 28. f5 {[%emt 0:09:54]} gxf5 {[%emt 0:00:48]} 29. Bf4 {[%emt 0:01:58]} Qb4 {[%emt 0:00:09]} 30. Rb1 {[%emt 0:00:49]} Qc3 {[%emt 0:00:51]} 31. Rec1 {[%emt 0:00:59]} Nb5 {[%emt 0:00:33]} 32. Rxc3 {[%emt 0:03:59]} Nxc3 {[%emt 0:00:06]} 33. Qa1 {[%emt 0:01:34]} Nxb1 {[%emt 0:00:05]} 34. Qxb1 {[%emt 0:00:02]} Bxe6 {[%emt 0:00:05]} 35. dxe6 {[%emt 0:00:06]} Rad8 {[%emt 0:00:02]} 36. Qxf5 {[%emt 0:00:44]} d3 {[%emt 0:00:05]} 37. Bd2 {[%emt 0:01:24]} 1-0

[Event "53rd Women Tournament 2022"]
[Site "Belgrade"]
[Date "2022.03.31"]
[Round "4.2"]
[White "Xu, Yuanyuan"]
[Black "Benderac, Ana"]
[Result "1-0"]
[ECO "D36"]
[WhiteElo "2317"]
[BlackElo "2180"]
[Annotator "NA"]
[PlyCount "57"]
[EventDate "2022.03.28"]
[EventType "tourn"]
[EventCountry "SRB"]
[SourceTitle "playchess.com"]
[Source "ChessBase"]
[SourceQuality "1"]
[TimeControl "40/5400+30:1800+30"]

1. d4 {[%emt 0:00:02]} d5 {[%emt 0:00:23]} 2. c4 {[%emt 0:00:53]} e6 {[%emt 0:00:18]} 3. Nc3 {[%emt 0:01:35]} Nf6 {[%emt 0:01:05]} 4. cxd5 {[%emt 0:03:28]} exd5 {[%emt 0:00:09]} 5. Bg5 {[%emt 0:00:10]} c6 {[%emt 0:03:39]} 6. Qc2 {[%emt 0:00:51]} Be7 {[%emt 0:03:22]} 7. e3 {[%emt 0:00:10]} O-O {[%emt 0:00:15]} 8. Bd3 {[%emt 0:00:07]} Nbd7 {[%emt 0:02:15]} 9. Nge2 {[%emt 0:00:41]} Re8 {[%emt 0:00:45]} 10. f3 {[%emt 0:00:36]} Nf8 {[%emt 0:01:06]} 11. O-O {[%emt 0:02:28]} h6 {[%emt 0:13:03]} 12. Bh4 {[%emt 0:00:43]} Ne6 {[%emt 0:01:00]} 13. Rad1 {[%emt 0:03:18]} b6 {[%emt 0:15:28]} 14. Kh1 {[%emt 0:09:26]} Bb7 {[%emt 0:01:38]} 15. Bf5 {[%emt 0:06:26]} Ng5 {[%emt 0:01:52]} 16. Bf2 {[%emt 0:08:31]} Bc8 {[%emt 0:11:05]} 17. Bd3 {[%emt 0:00:43]} Bb7 {[%emt 0:01:00]} 18. e4 {[%emt 0:04:59]} dxe4 {[%emt 0:09:27]} 19. fxe4 {[%emt 0:00:11]} Ne6 {[%emt 0:01:14]} 20. Bg1 {[%emt 0:07:08]} c5 {[%emt 0:08:43]} 21. d5 {[%emt 0:16:46]} Nc7 {[%emt 0:03:24]} 22. e5 {[%emt 0:00:48]} Nfxd5 {[%emt 0:00:23]} 23. Bh7+ {[%emt 0:00:35]} Kh8 {[%emt 0:01:07]} 24. Rxf7 {[%emt 0:00:59]} Rf8 {[%emt 0:00:39]} 25. Rxg7 {[%emt 0:04:08]} Kxg7 {[%emt 0:02:20]} 26. Qg6+ {[%emt 0:00:12]} Kh8 {[%emt 0:00:04]} 27. Bg8 {[%emt 0:00:17]} Nf6 {[%emt 0:02:35]} 28. exf6 {[%emt 0:06:20]} Bxg2+ {[%emt 0:00:38]} 29. Qxg2 {[%emt 0:00:36]} 1-0

[Event "53rd Women Tournament 2022"]
[Site "Belgrade"]
[Date "2022.03.31"]
[Round "4.3"]
[White "Kovacevic, Radmila"]
[Black "Navrotescu, Andreea"]
[Result "0-1"]
[ECO "C56"]
[WhiteElo "2072"]
[BlackElo "2229"]
[Annotator "NA"]
[PlyCount "62"]
[EventDate "2022.03.28"]
[EventType "tourn"]
[EventCountry "SRB"]
[SourceTitle "playchess.com"]
[Source "ChessBase"]
[SourceQuality "1"]
[TimeControl "40/5400+30:1800+30"]

1. e4 {[%emt 0:10:34]} e5 {[%emt 1:31:00]} 2. Nf3 {[%emt 0:01:21]} Nc6 {[%emt 0:00:00]} 3. Bc4 {[%emt 0:00:44]} Nf6 {[%emt 0:00:00]} 4. O-O {[%emt 0:02:45]} Be7 {[%emt 0:00:00]} 5. d4 {[%emt 0:01:09]} exd4 {[%emt 0:02:00]} 6. e5 {[%emt 0:06:07]} Ne4 {[%emt 0:00:30]} 7. Bd5 {[%emt 0:01:03]} Nc5 {[%emt 0:00:00]} 8. Nxd4 {[%emt 1:10:47]} Nxe5 {[%emt 0:00:00]} 9. Re1 {[%emt 0:00:00]} d6 {[%emt 0:00:00]} 10. f4 {[%emt 0:01:00]} Ng6 {[%emt 0:00:00]} 11. b4 {[%emt 0:00:00]} Na6 {[%emt 0:00:00]} 12. b5 {[%emt 0:00:00]} Nc5 {[%emt 0:00:00]} 13. Qh5 {[%emt 0:00:00]} O-O {[%emt 0:03:30]} 14. f5 {[%emt 0:00:00]} Ne5 {[%emt 0:00:00]} 15. a4 {[%emt 0:02:30]} Ncd7 {[%emt 0:01:00]} 16. Bb3 {[%emt 0:00:00]} Nf6 {[%emt 0:00:30]} 17. Qh3 {[%emt 0:01:00]} c5 {[%emt 0:00:00]} 18. Nf3 {[%emt 0:00:00]} c4 {[%emt 0:00:00]} 19. Ba2 {[%emt 0:00:00]} Neg4 {[%emt 0:00:00]} 20. Nd4 {[%emt 0:00:00]} d5 {[%emt 0:02:00]} 21. c3 {[%emt 0:02:00]} Re8 {[%emt 0:00:30]} 22. Bf4 {[%emt 0:00:00]} Bd6 {[%emt 0:00:00]} 23. Rf1 {[%emt 0:00:00]} Bxf4 {[%emt 0:00:00]} 24. Rxf4 {[%emt 0:00:00]} Re1+ {[%emt 0:00:00]} 25. Rf1 {[%emt 0:00:00]} Rxf1+ {[%emt 0:00:00]} 26. Kxf1 {[%emt 0:00:00]} Qd6 {[%emt 0:00:00]} 27. Kg1 {[%emt 0:00:00]} Qf4 {[%emt 0:00:00]} 28. Na3 {[%emt 0:00:00]} Qf2+ {[%emt 0:00:00]} 29. Kh1 {[%emt 0:00:00]} Qb2 {[%emt 0:00:00]} 30. Rf1 {[%emt 0:01:29]} Nf2+ {[%emt 0:00:00]} 31. Rxf2 {[%emt 0:00:15]} Qc1+ {[%emt 0:00:00]} 0-1

[Event "53rd Women Tournament 2022"]
[Site "Belgrade"]
[Date "2022.03.31"]
[Round "4.4"]
[White "Toncheva, Nadya"]
[Black "Manakova, Maria"]
[Result "1-0"]
[ECO "B22"]
[WhiteElo "2207"]
[BlackElo "2257"]
[Annotator "NA"]
[PlyCount "85"]
[EventDate "2022.03.28"]
[EventType "tourn"]
[EventCountry "SRB"]
[SourceTitle "playchess.com"]
[Source "ChessBase"]
[SourceQuality "1"]
[TimeControl "40/5400+30:1800+30"]

1. e4 {[%emt 0:00:03]} c5 {[%emt 0:04:24]} 2. Nf3 {[%emt 0:00:05]} Nc6 {[%emt 0:00:05]} 3. c3 {[%emt 0:00:04]} e6 {[%emt 0:03:52]} 4. d4 {[%emt 0:00:05]} d5 {[%emt 0:00:03]} 5. exd5 {[%emt 0:00:05]} exd5 {[%emt 0:00:04]} 6. Bd3 {[%emt 0:03:39]} Bd6 {[%emt 0:00:26]} 7. O-O {[%emt 0:00:23]} Nge7 {[%emt 0:00:11]} 8. dxc5 {[%emt 0:03:25]} Bxc5 {[%emt 0:00:06]} 9. Qc2 {[%emt 0:03:09]} Bg4 {[%emt 0:02:17]} 10. Nbd2 {[%emt 0:00:12]} Qb6 {[%emt 0:10:12]} 11. Nb3 {[%emt 0:11:56]} Bxf3 {[%emt 0:01:13]} 12. Nxc5 {[%emt 0:00:27]} Qxc5 {[%emt 0:00:32]} 13. gxf3 {[%emt 0:00:04]} Qd6 {[%emt 0:07:35]} 14. Re1 {[%emt 0:09:26]} h6 {[%emt 0:09:29]} 15. Qa4 {[%emt 0:09:45]} O-O {[%emt 0:03:45]} 16. Qf4 {[%emt 0:00:29]} Qxf4 {[%emt 0:00:41]} 17. Bxf4 {[%emt 0:00:05]} Ng6 {[%emt 0:01:05]} 18. Bg3 {[%emt 0:02:40]} Rfe8 {[%emt 0:01:36]} 19. Kg2 {[%emt 0:02:43]} Nge5 {[%emt 0:08:30]} 20. Bb5 {[%emt 0:02:55]} f6 {[%emt 0:10:56]} 21. Rad1 {[%emt 0:00:32]} Red8 {[%emt 0:08:36]} 22. Ba4 {[%emt 0:07:45]} Kf8 {[%emt 0:03:01]} 23. Bf4 {[%emt 0:08:29]} Ng6 {[%emt 0:05:40]} 24. Be3 {[%emt 0:02:59]} Nh4+ {[%emt 0:00:45]} 25. Kg3 {[%emt 0:00:08]} Nf5+ {[%emt 0:01:09]} 26. Kf4 {[%emt 0:00:11]} Nce7 {[%emt 0:03:04]} 27. Bc2 {[%emt 0:05:14]} Nd6 {[%emt 0:02:47]} 28. Bc5 {[%emt 0:01:48]} b6 {[%emt 0:00:12]} 29. Ba3 {[%emt 0:00:31]} Rd7 {[%emt 0:05:30]} 30. Bb3 {[%emt 0:05:28]} g5+ {[%emt 0:05:52]} 31. Kg4 {[%emt 0:00:38]} h5+ {[%emt 0:00:11]} 32. Kh3 {[%emt 0:02:07]} Ng6 {[%emt 0:00:25]} 33. Bxd5 {[%emt 0:04:01]} Nf4+ {[%emt 0:01:41]} 34. Kg3 {[%emt 0:00:04]} Rad8 {[%emt 0:00:43]} 35. Bc6 {[%emt 0:03:33]} Re7 {[%emt 0:00:03]} 36. Rxd6 {[%emt 0:02:09]} Rxe1 {[%emt 0:00:14]} 37. Re6+ {[%emt 0:00:50]} Kg7 {[%emt 0:01:12]} 38. Rxe1 {[%emt 0:00:06]} h4+ {[%emt 0:00:34]} 39. Kg4 {[%emt 0:00:04]} Nd3 {[%emt 0:00:12]} 40. Re7+ {[%emt 0:00:28]} Kh6 {[%emt 0:01:04]} 41. Kf5 {[%emt 0:30:38]} Ne5 {[%emt 0:01:54]} 42. Be4 {[%emt 0:00:00]} Ng6 {[%emt 0:01:05]} 43. Rxa7 {[%emt 0:00:00]} 1-0

[Event "53rd Women Tournament 2022"]
[Site "Belgrade"]
[Date "2022.03.31"]
[Round "4.5"]
[White "Grozdanovic, Anastasia"]
[Black "Lu, Miaoyi"]
[Result "1/2-1/2"]
[ECO "D87"]
[WhiteElo "2005"]
[BlackElo "2182"]
[Annotator "NA"]
[PlyCount "57"]
[EventDate "2022.03.28"]
[EventType "tourn"]
[EventCountry "SRB"]
[SourceTitle "playchess.com"]
[Source "ChessBase"]
[SourceQuality "1"]
[TimeControl "40/5400+30:1800+30"]

1. d4 {[%emt 0:00:02]} Nf6 {[%emt 0:00:03]} 2. c4 {[%emt 0:00:11]} g6 {[%emt 0:00:08]} 3. Nc3 {[%emt 0:00:13]} d5 {[%emt 0:00:04]} 4. cxd5 {[%emt 0:00:26]} Nxd5 {[%emt 0:00:05]} 5. e4 {[%emt 0:00:15]} Nxc3 {[%emt 0:00:04]} 6. bxc3 {[%emt 0:00:04]} Bg7 {[%emt 0:00:09]} 7. Bc4 {[%emt 0:00:37]} c5 {[%emt 0:00:20]} 8. Ne2 {[%emt 0:01:00]} Nc6 {[%emt 1:33:37]} 9. Be3 {[%emt 0:01:36]} O-O {[%emt 0:00:00]} 10. O-O {[%emt 0:00:05]} b6 {[%emt 0:00:00]} 11. dxc5 {[%emt 0:09:29]} Qc7 {[%emt 0:00:00]} 12. cxb6 {[%emt 0:08:42]} axb6 {[%emt 0:00:00]} 13. Rb1 {[%emt 0:02:24]} Ne5 {[%emt 0:02:30]} 14. Bd5 {[%emt 0:10:48]} Rb8 {[%emt 0:00:00]} 15. f3 {[%emt 0:08:14]} Ba6 {[%emt 0:00:00]} 16. Bd4 {[%emt 0:15:36]} e6 {[%emt 0:00:00]} 17. Bb3 {[%emt 0:02:03]} Rfd8 {[%emt 0:00:00]} 18. f4 {[%emt 0:07:09]} Nc6 {[%emt 0:00:00]} 19. e5 {[%emt 0:05:40]} Nxd4 {[%emt 0:00:00]} 20. cxd4 {[%emt 0:00:34]} Bxe2 {[%emt 0:00:00]} 21. Qxe2 {[%emt 0:00:04]} Rxd4 {[%emt 0:00:00]} 22. Rbc1 {[%emt 0:05:09]} Qd7 {[%emt 0:00:00]} 23. Rcd1 {[%emt 0:01:00]} Bf8 {[%emt 0:00:00]} 24. Kh1 {[%emt 0:00:44]} Bc5 {[%emt 0:00:12]} 25. Rxd4 {[%emt 0:01:39]} Qxd4 {[%emt 0:00:05]} 26. Qf3 {[%emt 0:01:04]} Qd7 {[%emt 0:01:58]} 27. g4 {[%emt 0:05:20]} Qb7 {[%emt 0:01:46]} 28. Qxb7 {[%emt 0:00:39]} Rxb7 {[%emt 0:00:26]} 29. Kg2 {[%emt 0:00:59]} 1/2-1/2

[Event "53rd Women Tournament 2022"]
[Site "Belgrade"]
[Date "2022.04.01"]
[Round "5.1"]
[White "Lu, Miaoyi"]
[Black "Chelushkina, Irina"]
[Result "1-0"]
[ECO "B30"]
[WhiteElo "2182"]
[BlackElo "2183"]
[Annotator "ChessBase"]
[PlyCount "115"]
[EventDate "2022.03.28"]
[EventType "tourn"]
[EventCountry "SRB"]
[SourceTitle "playchess.com"]
[Source "ChessBase"]
[SourceQuality "1"]
[TimeControl "40/5400+30:1800+30"]

1. e4 {[%emt 0:00:02]} c5 {[%emt 0:00:04]} 2. Nf3 {[%emt 0:00:02]} Nc6 {[%emt 0:00:05]} 3. Bb5 {[%emt 0:00:04]} Na5 {[%emt 0:01:36]} 4. O-O {[%emt 0:00:07]} a6 {[%emt 0:00:03]} 5. Be2 {[%emt 0:00:06]} d6 {[%emt 0:00:11]} 6. d4 {[%emt 0:05:52]} cxd4 {[%emt 0:02:22]} 7. Nxd4 {[%emt 0:00:06]} e5 {[%emt 0:00:50]} 8. Nf3 {[%emt 0:03:56]} Nf6 {[%emt 0:00:21]} 9. Nc3 {[%emt 0:11:00]} Be7 {[%emt 0:00:06]} 10. Nd5 {[%emt 0:25:18]} Nc6 {[%emt 0:00:14]} 11. Nxe7 {[%emt 0:08:29]} Nxe7 {[%emt 0:01:10]} 12. Qd3 {[%emt 0:01:11]} O-O {[%emt 0:03:03]} 13. Rd1 {[%emt 0:05:45]} Nc6 {[%emt 0:01:09]} 14. Bg5 {[%emt 0:04:33]} Be6 {[%emt 0:01:50]} 15. Qa3 {[%emt 0:06:25]} h6 {[%emt 0:04:52]} 16. Rxd6 {[%emt 0:00:53]} Qe7 {[%emt 0:00:19]} 17. Bxf6 {[%emt 0:00:32]} Qxf6 {[%emt 0:00:28]} 18. Rad1 {[%emt 0:09:03]} Qf4 {[%emt 0:00:26]} 19. Qe3 {[%emt 0:06:23]} Qxe3 {[%emt 0:00:19]} 20. fxe3 {[%emt 0:00:02]} Rfc8 {[%emt 0:00:02]} 21. c4 {[%emt 0:02:19]} Kf8 {[%emt 0:05:40]} 22. a3 {[%emt 0:05:48]} Ke7 {[%emt 0:01:27]} 23. b4 {[%emt 0:00:34]} a5 {[%emt 0:12:43]} 24. b5 {[%emt 0:00:04]} Nd4 {[%emt 0:01:29]} 25. exd4 {[%emt 0:00:44]} Kxd6 {[%emt 0:00:05]} 26. c5+ {[%emt 0:00:48]} Ke7 {[%emt 0:01:54]} 27. Nxe5 {[%emt 0:00:45]} g5 {[%emt 0:09:24]} 28. Nc4 {[%emt 0:01:10]} Bxc4 {[%emt 0:00:19]} 29. Bxc4 {[%emt 0:00:02]} b6 {[%emt 0:02:22]} 30. c6 {[%emt 0:00:09]} f6 {[%emt 0:00:50]} 31. Kf2 {[%emt 0:00:35]} Rd8 {[%emt 0:00:37]} 32. Ke3 {[%emt 0:00:33]} Rd6 {[%emt 0:00:32]} 33. Rf1 {[%emt 0:00:28]} Rf8 {[%emt 0:04:34]} 34. Rf5 {[%emt 0:02:24]} Rdd8 {[%emt 0:03:10]} 35. Be2 {[%emt 0:00:25]} Kd6 {[%emt 0:03:45]} 36. Rd5+ {[%emt 0:00:43]} Kc7 {[%emt 0:00:10]} 37. Rxd8 {[%emt 0:00:31]} Rxd8 {[%emt 0:40:29]} 38. Bg4 {[%emt 0:00:35]} Re8 {[%emt 0:00:00]} 39. Kf3 {[%emt 0:00:37]} Kd6 {[%emt 0:00:00]} 40. a4 {[%emt 0:00:19]} Rh8 {[%emt 0:00:00]} 41. Bd7 {[%emt 0:18:28]} h5 {[%emt 0:00:00]} 42. Ke3 {[%emt 0:01:40]} Rf8 {[%emt 0:00:00]} 43. Kd3 {[%emt 0:04:12]} Rf7 {[%emt 0:00:00]} 44. Be8 {[%emt 0:00:21]} Rh7 {[%emt 0:00:00]} 45. Kc4 {[%emt 0:00:18]} Re7 {[%emt 0:00:30]} 46. Bg6 {[%emt 0:00:20]} h4 {[%emt 0:00:27]} 47. h3 {[%emt 0:05:48]} Rg7 {[%emt 0:00:26]} 48. Bf5 {[%emt 0:04:01]} Rf7 {[%emt 0:00:36]} 49. Kd3 {[%emt 0:00:00]} Rf8 {[%emt 0:00:26]} 50. Ke3 {[%emt 0:00:00]} Kc7 {[%emt 0:00:59]} 51. Kf3 {[%emt 0:00:00]} Re8 {[%emt 0:02:48]} 52. Kg4 {[%emt 0:00:00]} Kd6 {[%emt 0:02:14]} 53. Kh5 {[%emt 0:00:00]} Rg8 {[%emt 0:01:16]} 54. Kh6 {[%emt 0:00:00]} Kc7 {[%emt 0:02:37]} 55. Kh7 {[%emt 0:00:00]} Rd8 {[%emt 0:00:02]} 56. Bd7 {[%emt 0:00:00]} Kd6 {[%emt 0:00:00]} 57. Kg7 {[%emt 0:00:24]} Ke7 {[%emt 0:00:30]} 58. Kh7 {[%emt 0:00:45]} 1-0

[Event "53rd Women Tournament 2022"]
[Site "Belgrade"]
[Date "2022.04.01"]
[Round "5.2"]
[White "Manakova, Maria"]
[Black "Grozdanovic, Anastasia"]
[Result "1/2-1/2"]
[ECO "B12"]
[WhiteElo "2257"]
[BlackElo "2005"]
[Annotator "TA"]
[PlyCount "52"]
[EventDate "2022.03.28"]
[EventType "tourn"]
[EventCountry "SRB"]
[SourceTitle "playchess.com"]
[Source "ChessBase"]
[SourceQuality "1"]
[TimeControl "40/5400+30:1800+30"]

{[%evp 10,52,15,16,0,-27,14,-49,-52,-53,-25,-15,-18,-23,-23,-66,-63,-90,-25,-13,-15,-18,-22,-42,-59,-52,-33,-39,-41,-31,-43,-39,-14,-60,-63,-60,-63,-67,-9,-7,-7,-4,0,-10,-6]} 1. e4 {[%emt 0:02:15]} c6 {[%emt 0:00:06]} 2. d4 {[%emt 0:00:05]} d5 {[%emt 0:00:09]} 3. e5 {[%emt 0:02:11]} c5 {[%emt 0:00:09]} 4. c3 {[%emt 0:00:27]} Nc6 {[%emt 0:00:19]} 5. Nf3 {[%emt 0:02:04]} Bg4 {[%emt 0:00:32]} 6. Be2 {[%emt 0:01:28]} e6 {[%emt 0:02:12] B12: Caro-Kann: Advance Variation.} 7. Be3 {[%emt 0:09:11]} Qb6 {[%emt 0:06:37]} 8. Qd2 {[%emt 0:00:51]} (8. Nbd2 $11) 8... Nh6 $15 {[%emt 0:03:39] Black is slightly better.} 9. O-O {[%emt 0:06:44]} Nf5 {[%emt 0:04:44]} (9... Bxf3 $5 10. Bxf3 Nf5 $15) 10. dxc5 $1 {[%emt 0:05:08]} Bxc5 {[%emt 0:01:18]} 11. Bxc5 {[%emt 0:00:09]} Qxc5 {[%emt 0:00:04] [#]} 12. Re1 $146 {[%emt 0:01:03]} ({Predecessor:} 12. Qf4 Bxf3 13. Bxf3 Qb6 14. Bxd5 exd5 15. Qxf5 Qxb2 16. e6 O-O 17. Qxd5 Qxa1 18. Qd2 fxe6 {0-1 (35) Vorotnikov,V (2505)-Guliev,S (2505) Moscow 1996}) 12... O-O {[%emt 0:08:16]} 13. Na3 {[%emt 0:01:16][%cal Of3d4]} Rfd8 {[%emt 0:04:43]} (13... Nfe7 $17) 14. Nd4 $11 {[%emt 0:05:47] [#] Threatens to win with Nb3.} Bxe2 {[%emt 0:07:04]} (14... Ncxd4 $2 15. cxd4 (15. Bxg4 Nc6 $14) 15... Qxd4 16. Qxd4 Nxd4 17. Bxg4 $18) ({Resist} 14... Nxe5 15. Qf4 Bxe2 16. Qxe5 $14) 15. Nxf5 {[%emt 0:21:45]} exf5 {[%emt 0:03:46]} 16. Rxe2 {[%emt 0:00:31]} d4 {[%emt 0:01:11]} 17. Rae1 {[%emt 0:00:08]} dxc3 {[%emt 0:09:41]} 18. Qxc3 {[%emt 0:00:12]} Qxc3 {[%emt 0:00:16]} 19. bxc3 {[%emt 0:00:02]} Rd3 {[%emt 0:00:42]} 20. Nb5 {[%emt 0:02:32]} g6 {[%emt 0:03:25]} 21. e6 {[%emt 0:14:08]} (21. f4 $11) 21... fxe6 $15 {[%emt 0:01:42]} 22. Rxe6 {[%emt 0:00:07]} Rad8 {[%emt 0:02:04] Against Nd6} 23. c4 {[%emt 0:02:35]} Nd4 {[%emt 0:11:45]} (23... R8d7 $15 24. c5 R3d5) 24. Nxd4 $11 {[%emt 0:06:02] The position is equal.} R3xd4 {[%emt 0:00:13]} 25. c5 {[%emt 0:00:31]} Rd1 {[%emt 0:00:24]} 26. Kf1 {[%emt 0:07:03]} Rxe1+ {[%emt 0:00:08] Weighted Error Value: White=0.15 (very precise) /Black=0.19 (very precise)} 1/2-1/2

[Event "53rd Women Tournament 2022"]
[Site "Belgrade"]
[Date "2022.04.01"]
[Round "5.3"]
[White "Navrotescu, Andreea"]
[Black "Toncheva, Nadya"]
[Result "1/2-1/2"]
[ECO "A35"]
[WhiteElo "2229"]
[BlackElo "2207"]
[Annotator "NA"]
[PlyCount "81"]
[EventDate "2022.03.28"]
[EventType "tourn"]
[EventCountry "SRB"]
[SourceTitle "playchess.com"]
[Source "ChessBase"]
[SourceQuality "1"]
[TimeControl "40/5400+30:1800+30"]

1. c4 {[%emt 0:00:03]} c5 {[%emt 0:00:06]} 2. Nc3 {[%emt 0:00:06]} g6 {[%emt 0:00:08]} 3. Nf3 {[%emt 1:31:51]} Nc6 {[%emt 0:00:47]} 4. e3 {[%emt 0:00:00]} Nf6 {[%emt 0:00:14]} 5. d4 {[%emt 0:00:00]} cxd4 {[%emt 0:00:04]} 6. exd4 {[%emt 0:00:00]} d5 {[%emt 0:00:08]} 7. cxd5 {[%emt 0:00:00]} Nxd5 {[%emt 0:00:03]} 8. Qb3 {[%emt 0:00:00]} Nxc3 {[%emt 0:00:04]} 9. Bc4 {[%emt 0:00:00]} Nd5 {[%emt 0:00:04]} 10. Bxd5 {[%emt 0:00:00]} e6 {[%emt 0:00:02]} 11. Bxc6+ {[%emt 0:00:00]} bxc6 {[%emt 0:00:02]} 12. O-O {[%emt 0:00:00]} Qd5 {[%emt 0:01:37]} 13. Qe3 {[%emt 0:00:00]} f6 {[%emt 0:01:47]} 14. Bd2 {[%emt 0:00:00]} Be7 {[%emt 0:00:40]} 15. Bc3 {[%emt 0:00:00]} Kf7 {[%emt 1:32:14]} 16. Rfe1 {[%emt 0:06:30]} g5 {[%emt 0:00:30]} 17. a3 {[%emt 0:00:30]} g4 {[%emt 0:00:30]} 18. Nd2 {[%emt 0:00:00]} h5 {[%emt 0:00:00]} 19. Bb4 {[%emt 0:01:00]} Bxb4 {[%emt 0:00:00]} 20. axb4 {[%emt 0:00:00]} h4 {[%emt 0:01:30]} 21. Ra5 {[%emt 0:01:00]} Qd6 {[%emt 0:00:30]} 22. Rc5 {[%emt 0:00:30]} Bd7 {[%emt 0:00:30]} 23. Nc4 {[%emt 0:00:30]} Qb8 {[%emt 0:00:30]} 24. Rxc6 {[%emt 0:00:00]} Bxc6 {[%emt 0:00:00]} 25. Qxe6+ {[%emt 0:00:00]} Kg7 {[%emt 0:00:00]} 26. Qxg4+ {[%emt 0:01:30]} Kf7 {[%emt 0:00:00]} 27. Qe6+ {[%emt 0:00:00]} Kg7 {[%emt 0:02:00]} 28. Nd6 {[%emt 0:00:00]} Qc7 {[%emt 0:00:30]} 29. Nf5+ {[%emt 0:01:30]} Kg6 {[%emt 0:00:30]} 30. Ne7+ {[%emt 0:00:00]} Qxe7 {[%emt 0:00:00]} 31. Qg4+ {[%emt 0:00:00]} Kf7 {[%emt 0:00:00]} 32. Rxe7+ {[%emt 0:00:00]} Kxe7 {[%emt 0:00:00]} 33. Qf4 {[%emt 0:02:00]} Rac8 {[%emt 0:02:00]} 34. f3 {[%emt 0:00:30]} Kf7 {[%emt 0:00:00]} 35. Qf5 {[%emt 0:00:30]} Rhg8 {[%emt 0:01:00]} 36. d5 {[%emt 0:00:30]} Bb5 {[%emt 0:00:30]} 37. Qe6+ {[%emt 0:00:00]} Kg7 {[%emt 0:00:00]} 38. Qg4+ {[%emt 0:00:00]} Kf7 {[%emt 0:00:00]} 39. Qe6+ {[%emt 0:00:00]} Kg7 {[%emt 0:01:30]} 40. Qg4+ {[%emt 0:02:00]} Kf7 {[%emt 0:00:00]} 41. Qe6+ {[%emt 0:24:58]} 1/2-1/2